bitfinex-derivatives/quotes_BTCF0:USTF0_20241125
["timestamp","ask_amount","ask_price","bid_price","bid_amount"]
[1732522863469,0.050823,98267.0,98266.0,0.0004937]
[1732522863671,0.187703,98267.0,98266.0,0.0004937]
[1732522864480,0.188103,98267.0,98266.0,0.0004937]
[1732522864675,0.493383,98267.0,98266.0,0.0004937]
[1732522865069,0.188103,98267.0,98266.0,0.0004937]
[1732522868680,0.22773149,98267.0,98266.0,0.0004937]
[1732522869583,1.72773149,98267.0,98266.0,0.0004937]
[1732522870575,1.87958716,98267.0,98266.0,0.0004937]
[1732522870776,1.91008716,98267.0,98266.0,0.0004937]
[1732522871481,1.75823149,98267.0,98266.0,0.0004937]
[1732522871787,1.80767496,98267.0,98266.0,0.0004937]
[1732522872084,0.30767496,98267.0,98266.0,0.0004937]
[1732522872481,0.66847496,98267.0,98266.0,0.0004937]
[1732522872672,2.16847496,98267.0,98266.0,0.0004937]
[1732522874379,2.47375496,98267.0,98266.0,2.286e-05]
[1732522875072,2.92315616,98267.0,98266.0,2.286e-05]
[1732522875277,0.050837,98240.0,98235.0,0.050839]
[1732522875483,0.050837,98240.0,98234.0,0.0329]
[1732522875675,0.050837,98240.0,98236.0,0.050838]
[1732522876276,0.050837,98240.0,98237.0,7.788e-05]
[1732522876880,0.25862821,98242.0,98237.0,7.788e-05]
[1732522877078,0.25862821,98242.0,98237.0,0.05091588]
[1732522877278,0.12174821,98241.0,98237.0,0.05091588]
[1732522877473,0.13688,98242.0,98237.0,0.05091588]
[1732522878684,0.050838,98239.0,98237.0,7.788e-05]
[1732522881688,0.12174821,98241.0,98237.0,0.05091588]
[1732522882090,0.12174821,98241.0,98240.0,0.0004]
[1732522883992,0.12174821,98241.0,98240.0,1.01e-05]
[1732522884188,0.13183287,98241.0,98240.0,1.01e-05]
[1732522884896,0.13168521,98241.0,98240.0,1.01e-05]
[1732522885190,0.01008407,98241.0,98240.0,1.01e-05]
[1732522885895,0.05953998,98241.0,98240.0,1.01e-05]
[1732522887496,0.24216229,98241.0,98240.0,1.01e-05]
[1732522887697,0.05953998,98241.0,98240.0,1.01e-05]
[1732522888088,1.55953998,98241.0,98240.0,1.01e-05]
[1732522888593,2.04752947,98241.0,98240.0,1.01e-05]
[1732522888788,1.86490716,98241.0,98240.0,1.01e-05]
[1732522888987,0.050838,98238.0,98237.0,7.788e-05]
[1732522889196,0.11038416,98238.0,98237.0,7.788e-05]
[1732522889490,0.11158417,98238.0,98237.0,7.788e-05]
[1732522889696,0.29399926,98238.0,98237.0,7.788e-05]
[1732522889991,0.11158417,98238.0,98237.0,7.788e-05]
[1732522890193,0.10149392,98238.0,98237.0,7.788e-05]
[1732522890395,0.00120001,98238.0,98237.0,0.05091588]
[1732522890601,0.00120001,98238.0,98237.0,0.08978537]
[1732522890898,0.3608,98249.0,98237.0,0.08978537]
[1732522890899,0.1215936,98246.0,98242.0,0.050836]
[1732522891092,0.1215936,98246.0,98243.0,0.0326]
[1732522891298,0.1215936,98246.0,98243.0,0.033]
[1732522891685,0.1215936,98245.0,98243.0,0.033]
[1732522891893,0.12167543,98244.0,98243.0,0.033]
[1732522892290,0.13175962,98244.0,98243.0,0.033]
[1732522892492,0.01016602,98244.0,98243.0,0.033]
[1732522892991,0.01016602,98244.0,98243.0,0.0004]
[1732522892992,8.183e-05,98244.0,98243.0,0.0004]
[1732522893193,0.05961729,98244.0,98243.0,0.0004]
[1732522893396,0.05961796,98244.0,98243.0,0.0004]
[1732522893595,0.05961792,98244.0,98243.0,0.0004]
[1732522893990,0.24203301,98244.0,98243.0,0.0004]
[1732522894190,0.36497792,98244.0,98243.0,0.0004]
[1732522894794,1.86498642,98244.0,98243.0,0.0004]
[1732522895092,2.01880513,98244.0,98243.0,0.0004]
[1732522895296,2.01880513,98244.0,98243.0,7.9e-06]
[1732522896995,2.03028338,98244.0,98243.0,7.9e-06]
[1732522898996,2.0205631,98244.0,98243.0,7.9e-06]
[1732522899389,2.02076005,98244.0,98243.0,7.9e-06]
[1732522900500,1.86518471,98244.0,98243.0,7.9e-06]
[1732522900702,2.01905071,98244.0,98243.0,7.9e-06]
[1732522901496,2.01926645,98244.0,98243.0,7.9e-06]
[1732522901697,0.050838,98238.0,98217.0,0.050848]
[1732522901907,2.01390645,98244.0,98217.0,0.050848]
[1732522901908,0.12173122,98218.0,98217.0,0.050848]
[1732522902206,0.13241236,98218.0,98217.0,0.050848]
[1732522902397,0.01068114,98218.0,98217.0,0.050848]
[1732522902598,0.13241236,98218.0,98217.0,0.050848]
[1732522902803,0.13254096,98218.0,98217.0,0.05096743]
[1732522903005,0.14222536,98218.0,98217.0,0.05096743]
[1732522903201,0.15733414,98218.0,98217.0,0.00011943]
[1732522906405,0.30953165,98218.0,98217.0,0.00011943]
[1732522907005,0.15733414,98218.0,98217.0,0.00011943]
[1732522908007,0.30953165,98218.0,98217.0,0.00011943]
[1732522908209,0.15733414,98218.0,98217.0,0.00011943]
[1732522908411,0.30953165,98218.0,98217.0,0.00011943]
[1732522909613,0.20679976,98218.0,98217.0,0.00011943]
[1732522910010,0.22298545,98218.0,98210.0,0.0629]
[1732522910211,0.12173015,98211.0,98210.0,0.0629]
[1732522910406,0.03667983,98211.0,98210.0,0.0629]
[1732522910917,0.03667983,98211.0,98210.0,0.06300108]
[1732522917830,0.03680301,98211.0,98210.0,0.06300108]
[1732522920835,0.03678479,98211.0,98210.0,0.06300108]
[1732522921226,0.03763412,98211.0,98210.0,0.06300108]
[1732522923035,0.0211914,98211.0,98210.0,0.06300108]
[1732522924122,0.0204992,98211.0,98210.0,0.06300108]
[1732522924328,0.0099845,98211.0,98210.0,0.06300108]
[1732522925029,0.0004,98211.0,98210.0,0.06300108]
[1732522928536,0.0004,98211.0,98210.0,0.24476028]
[1732522929131,0.0004,98211.0,98210.0,0.06300108]
[1732522929541,0.15256269,98211.0,98210.0,0.06300108]
[1732522930240,0.0004,98211.0,98210.0,0.24476028]
[1732522930538,0.0004,98211.0,98210.0,0.06300108]
[1732522930731,0.15216269,98216.0,98210.0,0.36848108]
[1732522930930,0.05084,98234.0,98210.0,0.36848108]
[1732522930931,0.12201391,98213.0,98212.0,0.050851]
[1732522931132,0.15216269,98224.0,98222.0,0.050846]
[1732522931434,0.15216269,98227.0,98226.0,0.050844]
[1732522931634,0.21092666,98236.0,98226.0,0.29364495]
[1732522931944,0.15216269,98233.0,98231.0,0.18205625]
[1732522932241,0.15216269,98234.0,98230.0,0.050842]
[1732522932635,0.0004,98231.0,98230.0,0.050842]
[1732522933035,0.051242,98231.0,98229.0,0.18205625]
[1732522933238,0.050844,98227.0,98226.0,0.0004]
[1732522933543,0.051244,98227.0,98226.0,0.0004]
[1732522933736,0.0004,98227.0,98226.0,0.0004]
[1732522933933,0.0004,98227.0,98226.0,0.18245625]
[1732522934141,0.0004,98227.0,98226.0,0.0004]
[1732522936244,0.00995197,98227.0,98226.0,0.0004]
[1732522936849,0.00995197,98227.0,98226.0,0.356644]
[1732522937037,0.0004,98227.0,98226.0,0.356644]
[1732522937241,0.15216269,98246.0,98243.0,0.050835]
[1732522937441,0.15216269,98248.0,98234.0,0.41956397]
[1732522937639,0.15216269,98248.0,98235.0,0.0301]
[1732522937838,0.15216269,98248.0,98243.0,0.050835]
[1732522938040,0.15216269,98249.0,98243.0,0.050835]
[1732522938240,0.00966133,98244.0,98243.0,0.050835]
[1732522938441,8.183e-05,98244.0,98243.0,0.050835]
[1732522938647,8.183e-05,98244.0,98243.0,0.411635]
[1732522940139,8.183e-05,98244.0,98243.0,0.45118721]
[1732522941037,8.183e-05,98244.0,98243.0,0.411635]
[1732522941245,0.00960227,98244.0,98243.0,0.411635]
[1732522941451,0.00960227,98244.0,98243.0,0.050835]
[1732522942146,0.0101425,98244.0,98243.0,0.050835]
[1732522942346,8.183e-05,98244.0,98243.0,0.050835]
[1732522943051,8.183e-05,98244.0,98243.0,0.492955]
[1732522943240,0.09128415,98261.0,98243.0,0.74212]
[1732522943447,0.09128415,98266.0,98253.0,0.3608]
[1732522943749,0.14210615,98269.0,98267.0,0.050823]
[1732522943941,0.050823,98267.0,98261.0,0.050826]
[1732522944141,0.050823,98267.0,98262.0,0.050825]
[1732522944343,0.09108956,98267.0,98255.0,0.050829]
[1732522944546,0.050825,98264.0,98255.0,0.03949711]
[1732522944743,0.050827,98260.0,98255.0,0.050829]
[1732522945247,0.050827,98259.0,98255.0,0.050829]
[1732522946451,0.050828,98258.0,98255.0,0.050829]
[1732522947250,0.00953238,98257.0,98255.0,0.050829]
[1732522947549,0.00953238,98256.0,98255.0,0.050829]
[1732522948154,0.01959322,98256.0,98255.0,0.050829]
[1732522948651,0.00953238,98256.0,98255.0,0.050829]
[1732522948849,0.01959228,98256.0,98255.0,0.050829]
[1732522949952,0.05083,98253.0,98251.0,0.3608]
[1732522950251,0.01966338,98252.0,98251.0,0.411631]
[1732522950464,0.02006338,98252.0,98251.0,0.411631]
[1732522951452,0.050832,98250.0,98249.0,0.050831]
[1732522951650,0.07049538,98250.0,98249.0,0.050831]
[1732522951860,0.07089538,98250.0,98249.0,0.050831]
[1732522952063,0.07089538,98250.0,98248.0,0.03840881]
[1732522952064,0.06083548,98250.0,98248.0,0.03840881]
[1732522952354,0.050833,98248.0,98242.0,0.0015268]
[1732522952745,0.050833,98247.0,98246.0,0.050833]
[1732522953159,0.09108956,98249.0,98242.0,0.0015268]
[1732522953358,0.050835,98243.0,98242.0,0.0015268]
[1732522953554,0.051235,98243.0,98242.0,0.0015268]
[1732522953868,0.050837,98240.0,98238.0,0.03888426]
[1732522954161,0.050837,98240.0,98236.0,0.050839]
[1732522954162,0.0004,98239.0,98236.0,0.050839]
[1732522954659,0.0004,98237.0,98236.0,0.050839]
[1732522957155,0.0004,98237.0,98227.0,0.13664]
[1732522957456,0.050843,98228.0,98226.0,0.0004]
[1732522958353,0.050843,98228.0,98226.0,0.051244]
[1732522958554,0.09108956,98227.0,98226.0,0.051244]
[1732522958751,0.09116129,98227.0,98226.0,0.051244]
[1732522959063,0.050843,98229.0,98227.0,0.050843]
[1732522960263,0.050843,98229.0,98226.0,0.0004]
[1732522960264,0.050844,98227.0,98226.0,0.0004]
[1732522960561,0.051244,98227.0,98226.0,0.0004]
[1732522961360,0.13704,98227.0,98226.0,0.0004]
[1732522961955,0.187884,98227.0,98226.0,0.0004]
[1732522963256,0.13704,98227.0,98226.0,0.0004]
[1732522963455,0.0004,98227.0,98226.0,0.0004]
[1732522964766,0.09162569,98227.0,98226.0,0.0004]
[1732522965072,0.0004,98227.0,98226.0,0.0004]
[1732522967067,0.051244,98227.0,98226.0,0.051244]
[1732522969162,0.0004,98227.0,98226.0,0.051244]
[1732522972059,0.0004,98227.0,98226.0,0.356644]
[1732522972369,0.0004,98227.0,98226.0,0.051244]
[1732522978867,0.09169878,98227.0,98226.0,0.051244]
[1732522979270,0.0004,98227.0,98226.0,0.051244]
[1732522982967,0.01048208,98227.0,98226.0,0.051244]
[1732522983377,0.0004,98227.0,98226.0,0.051244]
[1732522987084,0.051244,98227.0,98226.0,0.051244]
[1732522987276,0.06133216,98227.0,98226.0,0.051244]
[1732522987581,0.051244,98227.0,98226.0,0.051244]
[1732522988587,0.061327,98227.0,98226.0,0.051244]
[1732522988877,0.07087839,98227.0,98226.0,0.051244]
[1732522992478,0.07087839,98227.0,98226.0,0.23279241]
[1732522992678,0.07087839,98227.0,98226.0,0.050844]
[1732522992984,0.050845,98225.0,98224.0,0.050844]
[1732522993290,0.02003439,98225.0,98224.0,0.23279241]
[1732522993588,0.02003439,98225.0,98224.0,0.050844]
[1732522994983,0.03611427,98225.0,98224.0,0.050844]
[1732522995574,0.02603127,98225.0,98224.0,0.050844]
[1732522995893,0.15840952,98225.0,98224.0,0.050844]
[1732522996181,0.0364598,98225.0,98224.0,0.050844]
[1732522996377,0.0873048,98225.0,98224.0,0.050844]
[1732522997688,0.07687627,98225.0,98224.0,0.050844]
[1732522997882,0.07113739,98225.0,98224.0,0.050844]
[1732522998487,0.02029239,98225.0,98224.0,0.050844]
[1732522999786,0.0004,98225.0,98224.0,0.050844]
[1732523000096,0.01038831,98225.0,98224.0,0.050844]
[1732523000586,0.02061972,98225.0,98224.0,0.050844]
[1732523003086,0.07146472,98225.0,98224.0,0.050844]
[1732523003294,0.07152121,98225.0,98224.0,0.050844]
[1732523004394,0.02067621,98225.0,98224.0,0.050844]
[1732523004793,0.01035874,98225.0,98224.0,0.050844]
[1732523005192,0.02076111,98225.0,98224.0,0.050844]
[1732523005588,0.07160611,98225.0,98224.0,0.050844]
[1732523005995,0.08766621,98225.0,98224.0,0.050844]
[1732523007094,0.08770128,98225.0,98224.0,0.18206665]
[1732523007396,0.08770128,98225.0,98218.0,0.24202115]
[1732523007397,0.050845,98224.0,98223.0,0.18206665]
[1732523007611,0.050848,98221.0,98220.0,0.050847]
[1732523007893,0.08770428,98221.0,98220.0,0.050847]
[1732523008086,0.39765628,98221.0,98216.0,0.24202115]
[1732523008287,0.39765628,98221.0,98216.0,0.18211983]
[1732523008288,0.15203935,98219.0,98216.0,0.18211983]
[1732523008487,0.0004,98217.0,98214.0,0.05085]
[1732523008789,0.0004,98215.0,98214.0,0.05085]
[1732523008992,0.08770628,98215.0,98214.0,0.05085]
[1732523010394,0.20968086,98215.0,98214.0,0.05085]
[1732523010595,0.08791058,98215.0,98214.0,0.05085]
[1732523010890,0.20988514,98215.0,98214.0,0.05085]
[1732523011197,0.20981783,98215.0,98214.0,0.05085]
[1732523011497,0.08784327,98215.0,98214.0,0.05085]
[1732523011891,0.08784327,98215.0,98214.0,0.23292771]
[1732523012496,0.08784327,98215.0,98214.0,0.05085]
[1732523014096,0.08784327,98215.0,98214.0,0.23288291]
[1732523014501,0.08848106,98215.0,98214.0,0.23288291]
[1732523016401,0.08848106,98215.0,98214.0,0.05085]
[1732523016607,0.03763106,98215.0,98214.0,0.23288291]
[1732523018106,0.02718599,98215.0,98214.0,0.23288291]
[1732523018298,0.03763837,98215.0,98214.0,0.23284429]
[1732523018697,0.0315,98220.0,98214.0,0.23284429]
[1732523018698,0.09142814,98220.0,98214.0,0.80288]
[1732523018898,0.09142814,98223.0,98222.0,0.050846]
[1732523019111,0.09142814,98224.0,98222.0,0.411646]
[1732523019405,0.12191877,98227.0,98226.0,0.050844]
[1732523019804,0.12191877,98227.0,98226.0,0.05164401]
[1732523020305,0.050842,98230.0,98229.0,0.050843]
[1732523021102,0.050842,98230.0,98229.0,0.05164301]
[1732523023203,0.050842,98230.0,98229.0,0.09117757]
[1732523023710,0.15239869,98234.0,98233.0,0.05084]
[1732523024401,0.15239869,98235.0,98233.0,0.05084]
[1732523024603,0.15239869,98235.0,98233.0,0.05164001]
[1732523024804,0.20323869,98235.0,98233.0,0.05164001]
[1732523026701,0.20323869,98235.0,98234.0,0.00080001]
[1732523027305,0.10029528,98235.0,98233.0,0.05082248]
[1732523027510,0.20321298,98235.0,98233.0,0.05082248]
[1732523028412,0.0004,98234.0,98233.0,0.05082248]
[1732523030707,0.01006254,98234.0,98233.0,0.05082248]
[1732523031108,0.02039728,98234.0,98233.0,0.05082248]
[1732523033419,0.0004,98234.0,98233.0,0.05082248]
[1732523033614,0.02042561,98234.0,98233.0,0.05082248]
[1732523037021,0.02048601,98234.0,98233.0,0.05082248]
[1732523038717,0.07132601,98234.0,98233.0,0.05082248]
[1732523039213,0.02048601,98234.0,98233.0,0.05082248]
[1732523040519,0.06155604,98234.0,98233.0,0.05082248]
[1732523040722,0.06134026,98234.0,98233.0,0.05082248]
[1732523041519,0.07087217,98234.0,98233.0,0.05082248]
[1732523042522,0.02003217,98234.0,98233.0,0.05082248]
[1732523044428,0.13239935,98234.0,98233.0,0.05082248]
[1732523044633,0.13239935,98234.0,98233.0,0.23265011]
[1732523044634,0.01050026,98234.0,98233.0,0.23265011]
[1732523044927,0.01050026,98234.0,98233.0,0.35622248]
[1732523045147,0.09141798,98238.0,98233.0,0.35622248]
[1732523045430,0.09141798,98245.0,98238.0,0.050838]
[1732523045725,0.09141798,98246.0,98244.0,0.412035]
[1732523045932,0.09141798,98246.0,98245.0,0.18176739]
[1732523045933,0.09139861,98246.0,98245.0,0.18176739]
[1732523046132,0.12189909,98250.0,98246.0,0.050834]
[1732523046324,0.12189909,98251.0,98245.0,0.0004]
[1732523046633,0.12189909,98249.0,98248.0,0.050833]
[1732523047226,0.12189909,98250.0,98248.0,0.050833]
[1732523047527,0.12189909,98249.0,98248.0,0.050833]
[1732523047928,0.12189909,98250.0,98248.0,0.050833]
[1732523048131,0.12189909,98250.0,98248.0,0.09039507]
[1732523048327,0.12189909,98251.0,98250.0,0.050832]
[1732523048532,0.3608,98252.0,98251.0,0.050831]
[1732523049442,0.48257512,98252.0,98251.0,0.050831]
[1732523049735,0.3608,98252.0,98251.0,0.050831]
[1732523051335,0.12177512,98255.0,98251.0,0.411631]
[1732523051535,0.09129227,98252.0,98251.0,0.411631]
[1732523051739,0.09129227,98253.0,98251.0,0.411631]
[1732523051940,0.09129227,98254.0,98253.0,0.05083]
[1732523052136,0.033,98263.0,98254.0,0.05083]
[1732523052137,0.09129227,98257.0,98254.0,0.05083]
[1732523052341,0.09129227,98258.0,98256.0,0.050829]
[1732523052534,0.09129227,98259.0,98258.0,0.050828]
[1732523052737,0.09129227,98259.0,98257.0,0.0004]
[1732523052738,0.09126452,98259.0,98257.0,0.0004]
[1732523053038,0.09126452,98259.0,98258.0,0.051228]
[1732523053238,0.033,98263.0,98258.0,0.051228]
[1732523053239,0.033,98263.0,98258.0,0.0004]
[1732523053440,0.09124636,98260.0,98259.0,0.050827]
[1732523053631,0.033,98263.0,98262.0,0.051225]
[1732523059044,0.09119211,98263.0,98262.0,0.09063023]
[1732523059248,0.09119211,98265.0,98263.0,0.050825]
[1732523059455,0.48257512,98269.0,98263.0,0.050825]
[1732523059456,0.48257512,98269.0,98268.0,0.050822]
[1732523059748,0.3608,98269.0,98268.0,0.051222]
[1732523060946,0.45197408,98269.0,98268.0,0.051222]
[1732523061141,0.3608,98269.0,98268.0,0.051222]
[1732523061340,0.45196585,98269.0,98268.0,0.051222]
[1732523061536,0.3608,98269.0,98268.0,0.051222]
[1732523061739,0.411622,98269.0,98268.0,0.051222]
[1732523063042,0.3608,98269.0,98268.0,0.051222]
[1732523068839,0.48235523,98269.0,98268.0,0.051222]
[1732523069154,0.12155523,98269.0,98268.0,0.051222]
[1732523070244,0.09122897,98271.0,98268.0,0.4422]
[1732523070445,0.51274404,98293.0,98276.0,0.050818]
[1732523070654,0.3608,98293.0,98276.0,0.411618]
[1732523070850,0.01014264,98292.0,98276.0,0.412018]
[1732523071447,0.01014264,98292.0,98276.0,0.717298]
[1732523071649,0.01014264,98292.0,98291.0,0.05081]
[1732523071954,0.3608,98293.0,98291.0,0.05121]
[1732523072248,0.1,98300.0,98299.0,0.050806]
[1732523072644,0.1,98300.0,98299.0,0.051206]
[1732523088660,0.1094897,98300.0,98299.0,0.051206]
[1732523089757,0.1,98300.0,98299.0,0.051206]
[1732523090765,0.10949466,98300.0,98299.0,0.051206]
[1732523091861,0.1,98300.0,98299.0,0.051206]
[1732523092459,0.1307,98300.0,98299.0,0.051206]
[1732523094269,0.1,98300.0,98299.0,0.051206]
[1732523098165,0.1,98300.0,98299.0,0.23259664]
[1732523098672,0.1,98300.0,98299.0,0.051206]
[1732523099674,0.1,98300.0,98299.0,0.23275993]
[1732523099866,0.1,98300.0,98299.0,0.051206]
[1732523101367,0.1,98300.0,98299.0,0.29288973]
[1732523101571,0.1,98300.0,98299.0,0.051206]
[1732523101766,0.1,98300.0,98299.0,0.29358715]
[1732523102070,0.1,98300.0,98299.0,0.051206]
[1732523103777,0.1,98300.0,98299.0,0.356406]
[1732523105076,0.1,98300.0,98299.0,0.492726]
[1732523107875,0.1,98300.0,98299.0,0.73518444]
[1732523108379,0.1,98300.0,98299.0,0.73518589]
[1732523109982,0.1,98300.0,98299.0,0.42998589]
[1732523110775,0.1,98300.0,98299.0,0.187526]
[1732523113883,0.1,98300.0,98299.0,0.051206]
[1732523114084,0.1263256,98300.0,98299.0,0.187526]
[1732523114380,0.1263256,98300.0,98299.0,0.42976516]
[1732523114684,0.1263256,98300.0,98299.0,0.187526]
[1732523115181,0.11012523,98300.0,98299.0,0.187526]
[1732523115378,0.11012523,98300.0,98299.0,0.051206]
[1732523115573,0.11012523,98300.0,98299.0,0.187526]
[1732523116089,0.1,98300.0,98299.0,0.187526]
[1732523116677,0.1,98300.0,98299.0,0.0004]
[1732523117081,0.050807,98297.0,98296.0,0.0393822]
[1732523117277,0.050809,98294.0,98290.0,0.050811]
[1732523117579,0.0646,98293.0,98290.0,0.050811]
[1732523118281,0.01982451,98292.0,98290.0,0.050811]
[1732523118587,0.01982451,98291.0,98290.0,0.050811]
[1732523118987,0.01026632,98291.0,98290.0,0.050811]
[1732523119183,0.00955623,98291.0,98290.0,0.050811]
[1732523119378,0.01982255,98291.0,98290.0,0.050811]
[1732523120192,0.01026632,98291.0,98290.0,0.050811]
[1732523121185,0.0311,98292.0,98290.0,0.050811]
[1732523121686,0.0311,98292.0,98291.0,0.0004]
[1732523122082,0.033,98293.0,98291.0,0.0004]
[1732523122285,0.033,98293.0,98292.0,0.05081]
[1732523122489,0.033,98293.0,98292.0,0.05121]
[1732523122984,0.083809,98293.0,98292.0,0.05121]
[1732523123179,0.0939204,98293.0,98292.0,0.05121]
[1732523124579,0.0939204,98293.0,98292.0,0.0004]
[1732523126387,0.083809,98293.0,98292.0,0.0004]
[1732523126594,0.09406117,98293.0,98292.0,0.0004]
[1732523126789,0.09406117,98293.0,98292.0,0.05121]
[1732523128291,0.10361806,98293.0,98292.0,0.05121]
[1732523129498,0.10361806,98293.0,98292.0,0.0004]
[1732523130189,0.10384195,98293.0,98292.0,0.0004]
[1732523130897,0.05303295,98293.0,98292.0,0.0004]
[1732523131288,0.17475506,98293.0,98292.0,0.0004]
[1732523132201,0.05303295,98293.0,98292.0,0.0004]
[1732523133892,0.16520666,98293.0,98292.0,0.0004]
[1732523134092,0.02035619,98293.0,98292.0,0.0004]
[1732523137706,0.02116243,98293.0,98292.0,0.05121]
[1732523138495,0.02116243,98293.0,98292.0,0.41201]
[1732523142107,0.037353,98293.0,98292.0,0.41201]
[1732523143108,0.02116243,98293.0,98292.0,0.41201]
[1732523144811,0.14300343,98293.0,98292.0,0.41201]
[1732523145302,0.02116243,98293.0,98292.0,0.41201]
[1732523147295,0.01104332,98293.0,98292.0,0.65402736]
[1732523147709,0.01104332,98294.0,98292.0,0.65402736]
[1732523147999,0.01104332,98293.0,98292.0,0.41161]
[1732523148202,0.121841,98296.0,98294.0,0.050809]
[1732523148405,0.01062423,98295.0,98294.0,0.050809]
[1732523152407,0.142148,98295.0,98294.0,0.050809]
[1732523152709,0.142148,98295.0,98294.0,0.411609]
[1732523153301,0.020307,98295.0,98294.0,0.411609]
[1732523153903,0.14215438,98295.0,98294.0,0.411609]
[1732523154208,0.020307,98295.0,98294.0,0.411609]
[1732523154405,0.14215429,98295.0,98294.0,0.411609]
[1732523154610,0.020307,98295.0,98294.0,0.411609]
[1732523155006,0.14215708,98295.0,98294.0,0.411609]
[1732523155600,0.020307,98295.0,98294.0,0.411609]
[1732523155804,0.14216232,98295.0,98294.0,0.411609]
[1732523156006,0.020307,98295.0,98294.0,0.411609]
[1732523159505,0.0004,98297.0,98296.0,0.050808]
[1732523159708,0.02100423,98297.0,98296.0,0.050808]
[1732523159907,0.02100423,98297.0,98296.0,0.051208]
[1732523159908,0.01115548,98297.0,98296.0,0.051208]
[1732523160112,0.02100477,98297.0,98296.0,0.051208]
[1732523160808,0.02098979,98297.0,98296.0,0.051208]
[1732523162005,0.02098979,98297.0,98293.0,0.03848621]
[1732523162006,0.07041161,98297.0,98293.0,0.03848621]
[1732523162201,0.3608,98294.0,98290.0,0.050811]
[1732523162402,0.05081,98292.0,98290.0,0.050811]
[1732523162712,0.07041162,98291.0,98290.0,0.050811]
[1732523162906,0.10071162,98291.0,98290.0,0.050811]
[1732523165299,0.0512898,98291.0,98290.0,0.050811]
[1732523165504,0.06732039,98291.0,98290.0,0.050811]
[1732523167115,0.06747447,98291.0,98285.0,0.40039646]
[1732523167407,0.05121301,98286.0,98285.0,0.40039646]
[1732523167612,0.05121301,98286.0,98285.0,0.03959646]
[1732523167613,0.08798747,98286.0,98285.0,0.03959646]
[1732523167801,0.050816,98280.0,98279.0,0.00152614]
[1732523168006,0.08759046,98280.0,98279.0,0.00152614]
[1732523168208,0.20978997,98280.0,98279.0,0.00152614]
[1732523168407,0.22395047,98280.0,98279.0,0.04125615]
[1732523168612,0.22395047,98280.0,98279.0,0.00152614]
[1732523168812,0.22478202,98280.0,98279.0,0.00152614]
[1732523169008,0.18717601,98280.0,98279.0,0.00152614]
[1732523169405,0.35645601,98280.0,98279.0,0.00152614]
[1732523169616,0.59387866,98280.0,98268.0,0.050822]
[1732523169818,0.12177789,98271.0,98268.0,0.050822]
[1732523170114,0.1221779,98269.0,98268.0,0.050822]
[1732523170314,0.0112524,98269.0,98268.0,0.050822]
[1732523170512,0.03803276,98269.0,98268.0,0.050822]
[1732523171111,0.02155254,98269.0,98268.0,0.050822]
[1732523172517,0.02155254,98269.0,98267.0,0.1813419]
[1732523172742,0.02155254,98269.0,98264.0,0.00012707]
[1732523172743,0.02115253,98268.0,98264.0,0.00012707]
[1732523172908,0.02115253,98268.0,98246.0,0.3025217]
[1732523172909,0.3608,98266.0,98253.0,0.1813419]
[1732523173105,0.3608,98266.0,98247.0,0.050833]
[1732523173106,0.12177789,98261.0,98247.0,0.050833]
[1732523173305,0.00040001,98254.0,98249.0,0.04046649]
[1732523173511,0.00040001,98250.0,98249.0,0.00152659]
[1732523173715,0.01070015,98250.0,98249.0,0.00152659]
[1732523173917,0.02131922,98250.0,98249.0,0.00162912]
[1732523176522,0.02123687,98250.0,98249.0,0.00162912]
[1732523178319,0.01070015,98250.0,98249.0,0.09582912]
[1732523180616,0.01014524,98250.0,98249.0,0.09582912]
[1732523183323,0.01014524,98250.0,98249.0,0.00162912]
[1732523185520,0.02098935,98250.0,98249.0,0.00162912]
[1732523187232,0.12177789,98273.0,98249.0,0.30698912]
[1732523187530,0.12177789,98288.0,98281.0,0.050816]
[1732523187741,0.01722252,98283.0,98282.0,0.050815]
[1732523188227,0.0305,98289.0,98282.0,0.3608]
[1732523188427,0.0305,98289.0,98285.0,0.050814]
[1732523188629,0.081312,98289.0,98285.0,0.050814]
[1732523190326,0.09115049,98288.0,98285.0,0.050814]
[1732523191632,0.09115049,98287.0,98285.0,0.050814]
[1732523192329,0.09115049,98288.0,98285.0,0.050814]
[1732523192537,0.09115049,98288.0,98286.0,0.050813]
[1732523192834,0.0305,98289.0,98288.0,0.050812]
[1732523198432,0.12165049,98289.0,98288.0,0.050812]
[1732523199337,0.05072289,98289.0,98288.0,0.050812]
[1732523201344,0.04229186,98289.0,98288.0,0.050812]
[1732523201644,0.04350023,98289.0,98288.0,0.050812]
[1732523202144,0.03310729,98289.0,98288.0,0.050812]
[1732523204143,0.00260729,98289.0,98288.0,0.050812]
[1732523209733,0.00260729,98289.0,98285.0,0.18102833]
[1732523209734,0.0333,98296.0,98285.0,0.18122047]
[1732523210045,0.62266001,98301.0,98299.0,0.050806]
[1732523210339,0.62266001,98301.0,98299.0,0.05128609]
[1732523213336,0.62266001,98301.0,98299.0,0.09106892]
[1732523214645,0.1323,98300.0,98299.0,0.09106892]
[1732523216242,0.1323,98300.0,98299.0,0.04026292]
[1732523216436,0.1323,98300.0,98299.0,0.09106892]
[1732523217238,0.25407789,98300.0,98299.0,0.09106892]
[1732523218443,0.25407789,98300.0,98299.0,0.27228939]
[1732523218951,0.1323,98300.0,98299.0,0.09106892]
[1732523219653,0.25407789,98300.0,98299.0,0.09106892]
[1732523219850,0.1323,98300.0,98299.0,0.09106892]
[1732523221848,0.1323,98300.0,98299.0,0.27245496]
[1732523222049,0.1323,98300.0,98299.0,0.09106892]
[1732523223354,0.1,98300.0,98299.0,0.09106892]
[1732523224151,0.1,98300.0,98299.0,0.33308628]
[1732523224352,0.1,98300.0,98299.0,0.09106892]
[1732523234256,0.2356,98300.0,98299.0,0.18199729]
[1732523234457,0.3307,98300.0,98299.0,0.00048009]
[1732523236356,0.37036289,98300.0,98299.0,0.00048009]
[1732523237157,0.59556289,98300.0,98299.0,0.18199729]
[1732523237346,0.59556289,98300.0,98291.0,0.24201736]
[1732523237347,0.050808,98296.0,98285.0,0.1815172]
[1732523237550,0.050812,98289.0,98286.0,0.050813]
[1732523237760,0.186412,98288.0,98287.0,0.050812]
[1732523237959,0.1356,98288.0,98285.0,0.1815172]
[1732523238256,0.051213,98286.0,98285.0,0.1815172]
[1732523238560,0.051213,98286.0,98285.0,0.18160894]
[1732523241753,0.0004,98286.0,98285.0,0.18160894]
[1732523243860,0.0004,98286.0,98285.0,0.36089174]